bitfinex/quotes_BTCUSD_20240723
["timestamp","ask_amount","ask_price","bid_price","bid_amount"]
[1721693177278,0.12261696,67773.0,67772.0,1.04775436]
[1721693177485,0.1667218,67773.0,67772.0,1.04775436]
[1721693177899,3e-07,67773.0,67772.0,1.04775436]
[1721693178113,0.12262,67773.0,67772.0,1.04775436]
[1721693178316,0.16672405,67773.0,67772.0,1.04775436]
[1721693179150,0.16672405,67773.0,67772.0,1.34286136]
[1721693179151,0.12262,67773.0,67772.0,1.34286136]
[1721693179354,0.12262,67773.0,67772.0,1.04775436]
[1721693179563,0.16672405,67773.0,67772.0,1.34286136]
[1721693179972,0.16672405,67773.0,67772.0,1.48836136]
[1721693180190,3e-07,67773.0,67772.0,1.48836136]
[1721693180978,0.12261562,67773.0,67772.0,1.48836136]
[1721693181189,0.16671967,67773.0,67772.0,1.78346836]
[1721693181359,3e-07,67773.0,67772.0,1.80646836]
[1721693182577,3e-07,67773.0,67772.0,1.51136136]
[1721693183236,0.04410435,67773.0,67772.0,1.51136136]
[1721693183441,3e-07,67773.0,67772.0,1.51136136]
[1721693183854,3e-07,67773.0,67772.0,1.80646836]
[1721693184053,3e-07,67773.0,67772.0,1.52034733]
[1721693184320,3e-07,67773.0,67772.0,1.71134733]
[1721693184523,0.00832,67774.0,67773.0,1.032857]
[1721693184745,0.00805676,67774.0,67773.0,1.155857]
[1721693184981,0.01,67777.0,67776.0,0.737722]
[1721693185193,0.01,67777.0,67776.0,1.5126]
[1721693185406,0.01,67777.0,67776.0,1.807689]
[1721693185619,0.05415503,67777.0,67776.0,1.807689]
[1721693185823,0.05415503,67777.0,67776.0,1.4279]
[1721693185824,0.04093447,67777.0,67776.0,1.4279]
[1721693186024,0.21561718,67777.0,67776.0,1.4279]
[1721693186231,0.12730712,67777.0,67776.0,1.4279]
[1721693186802,0.01,67777.0,67776.0,1.4279]
[1721693187054,0.07627208,67777.0,67776.0,1.881789]
[1721693187229,0.01,67777.0,67776.0,1.904789]
[1721693187560,0.05418965,67777.0,67776.0,1.904789]
[1721693187913,0.01,67777.0,67776.0,1.904789]
[1721693189153,0.01,67777.0,67776.0,1.97385453]
[1721693189373,0.05418965,67777.0,67776.0,1.97385453]
[1721693189729,0.01,67777.0,67776.0,1.97385453]
[1721693190085,0.05420916,67777.0,67776.0,1.97385453]
[1721693190287,0.01,67777.0,67776.0,1.97385453]
[1721693190890,0.06631375,67778.0,67777.0,1.74203253]
[1721693190891,0.01729975,67778.0,67777.0,1.74203253]
[1721693191093,0.1346275,67789.0,67786.0,0.51163453]
[1721693191094,0.09676348,67787.0,67786.0,0.51163453]
[1721693191299,0.09044348,67789.0,67788.0,0.737592]
[1721693191502,0.002,67789.0,67788.0,1.722703]
[1721693191698,0.04622401,67789.0,67788.0,1.811403]
[1721693191899,0.04622401,67789.0,67788.0,1.516366]
[1721693191900,0.002,67789.0,67788.0,1.516366]
[1721693192103,0.09044348,67789.0,67788.0,1.516366]
[1721693192457,0.18394136,67789.0,67788.0,1.516366]
[1721693192586,0.09044348,67789.0,67788.0,1.516366]
[1721693192791,0.18348216,67789.0,67788.0,1.516366]
[1721693193064,0.18348216,67789.0,67788.0,1.493366]
[1721693193271,0.25697158,67789.0,67788.0,1.493366]
[1721693193450,0.25697158,67789.0,67788.0,1.507366]
[1721693194225,0.25697158,67789.0,67788.0,1.441666]
[1721693195215,0.16851673,67789.0,67788.0,1.441666]
[1721693195857,0.16851673,67789.0,67788.0,1.45026252]
[1721693196067,0.27908529,67789.0,67788.0,1.45026252]
[1721693196266,0.2612512,67789.0,67788.0,1.45026252]
[1721693196607,0.2612512,67789.0,67788.0,1.05522552]
[1721693197577,0.3422512,67789.0,67788.0,0.76018852]
[1721693197779,0.62627667,67789.0,67788.0,0.751592]
[1721693198597,0.38831147,67789.0,67788.0,0.751592]
[1721693198797,0.61048951,67789.0,67788.0,0.751592]
[1721693198998,0.27231959,67789.0,67788.0,0.737592]
[1721693199202,0.6115011,67789.0,67788.0,0.737592]
[1721693199376,0.6115011,67789.0,67788.0,0.742592]
[1721693199575,0.76072499,67789.0,67788.0,0.742592]
[1721693200006,0.6115011,67789.0,67788.0,0.742592]
[1721693201655,0.61431552,67789.0,67788.0,0.742592]
[1721693204767,0.61441586,67789.0,67788.0,0.742592]
[1721693206127,0.61525586,67789.0,67788.0,0.742592]
[1721693207829,0.6153504,67789.0,67788.0,0.742592]
[1721693208302,0.48006098,67789.0,67788.0,0.742592]
[1721693208554,0.48006098,67789.0,67788.0,1.037629]
[1721693208785,0.40582208,67789.0,67788.0,1.037629]
[1721693209040,0.40582208,67789.0,67788.0,1.032629]
[1721693209284,0.40582208,67789.0,67788.0,0.737592]
[1721693209527,0.40582208,67789.0,67788.0,0.746592]
[1721693209746,0.40582208,67789.0,67788.0,1.041629]
[1721693211362,0.05687017,67789.0,67788.0,1.041629]
[1721693211786,0.05687017,67789.0,67788.0,0.746592]
[1721693212008,0.17413037,67789.0,67788.0,0.746592]
[1721693212216,0.39688236,67789.0,67788.0,0.746592]
[1721693212365,0.62829183,67789.0,67788.0,0.746592]
[1721693213222,0.70849183,67789.0,67788.0,0.746592]
[1721693213672,0.70849183,67789.0,67788.0,0.009]
[1721693213879,0.62552926,67789.0,67788.0,0.00684207]
[1721693214099,0.27685959,67789.0,67788.0,0.44939707]
[1721693214279,0.61346808,67789.0,67788.0,0.00684207]
[1721693214923,0.61346808,67789.0,67783.0,0.295056]
[1721693214924,0.03093447,67785.0,67784.0,0.147527]
[1721693215212,0.03093447,67782.0,67781.0,0.147533]
[1721693215430,0.39363022,67782.0,67781.0,0.147533]
[1721693215638,0.61340779,67782.0,67781.0,0.4426]
[1721693215844,0.61340779,67782.0,67781.0,1.07795974]
[1721693215845,0.53991837,67782.0,67781.0,1.07795974]
[1721693216070,0.39063866,67782.0,67781.0,1.032734]
[1721693216850,0.39063866,67782.0,67781.0,1.038734]
[1721693217055,0.05403017,67782.0,67781.0,1.038734]
[1721693217259,0.16219878,67782.0,67781.0,1.038734]
[1721693217816,0.4549741,67782.0,67781.0,1.038734]
[1721693218021,0.4549741,67782.0,67781.0,1.032734]
[1721693218486,0.4549741,67782.0,67781.0,1.042734]
[1721693219250,0.5202741,67782.0,67781.0,0.01]
[1721693219598,0.5202741,67782.0,67781.0,0.00571261]
[1721693219599,1.12552903,67782.0,67781.0,0.00571261]
[1721693219837,1.03857488,67782.0,67781.0,0.00571261]
[1721693220044,1.09145085,67782.0,67781.0,0.00571261]
[1721693220241,1.28085968,67782.0,67781.0,0.00571261]
[1721693220456,1.42839068,67782.0,67781.0,0.00571261]
[1721693220662,1.42839068,67782.0,67781.0,0.00254395]
[1721693220663,1.83472165,67782.0,67781.0,0.00254395]
[1721693220866,1.43977237,67782.0,67781.0,0.00254395]
[1721693221315,0.32233447,67777.0,67772.0,0.000924]
[1721693221512,1.00446899,67777.0,67772.0,0.000924]
[1721693222174,0.34543017,67777.0,67772.0,0.000924]
[1721693222383,0.7251116,67777.0,67772.0,0.000924]
[1721693222787,0.73016575,67777.0,67772.0,0.000924]
[1721693223223,0.78016575,67777.0,67772.0,0.000924]
[1721693223430,0.9271284,67777.0,67772.0,0.000924]
[1721693224051,0.23093447,67766.0,67765.0,0.42961141]
[1721693224259,0.54888826,67766.0,67765.0,0.42961141]
[1721693224476,0.54888826,67766.0,67765.0,0.72474841]
[1721693224477,0.34888826,67766.0,67765.0,0.72474841]
[1721693224680,0.34888826,67766.0,67765.0,1.16058541]
[1721693224894,0.55811147,67766.0,67765.0,1.08228541]
[1721693225103,0.54764613,67766.0,67765.0,0.42961141]
[1721693225314,0.545755,67766.0,67765.0,0.72474841]
[1721693225534,0.545755,67766.0,67765.0,0.42961141]
[1721693225736,0.545755,67766.0,67765.0,0.43261141]
[1721693226352,0.545755,67766.0,67765.0,0.003]
[1721693226353,0.612055,67766.0,67765.0,0.003]
[1721693226737,0.612055,67766.0,67765.0,0.00136031]
[1721693228153,0.612055,67766.0,67754.0,0.295184]
[1721693228154,0.03093447,67758.0,67754.0,0.295184]
[1721693228353,0.14121115,67758.0,67757.0,0.442758]
[1721693228558,0.14121115,67758.0,67757.0,0.73793]
[1721693228754,0.11915593,67758.0,67757.0,0.73793]
[1721693228956,0.16339076,67758.0,67757.0,0.73793]
[1721693229327,0.27366485,67758.0,67757.0,0.73793]
[1721693229539,0.27466485,67758.0,67757.0,0.73793]
[1721693229745,0.27464135,67758.0,67757.0,0.73793]
[1721693229958,0.16439076,67758.0,67757.0,0.73793]
[1721693230152,0.05996687,67758.0,67757.0,0.73793]
[1721693230355,0.05996687,67758.0,67757.0,1.178602]
[1721693230356,0.06713257,67758.0,67757.0,1.178602]
[1721693230574,0.001,67758.0,67757.0,1.178602]
[1721693231353,0.03093447,67759.0,67758.0,1.033088]
[1721693231778,0.03093447,67759.0,67758.0,1.032088]
[1721693232394,0.03093447,67759.0,67758.0,0.73692]
[1721693232613,0.12009982,67759.0,67758.0,0.73692]
[1721693232897,0.17764038,67759.0,67758.0,0.73692]
[1721693233280,0.17664038,67759.0,67758.0,0.73692]
[1721693233486,0.17764038,67759.0,67758.0,0.146584]
[1721693233698,0.19968172,67759.0,67758.0,0.441752]
[1721693233900,0.19968172,67759.0,67758.0,0.73692]
[1721693234113,0.03193447,67759.0,67758.0,0.73692]
[1721693234315,0.14211472,67759.0,67758.0,0.73692]
[1721693234536,0.14211472,67759.0,67758.0,1.032088]
[1721693234537,0.03193447,67759.0,67758.0,1.032088]
[1721693234692,0.08598779,67759.0,67758.0,1.032088]
[1721693235070,0.08598779,67759.0,67758.0,0.74392]
[1721693235071,0.19715221,67759.0,67758.0,0.74392]
[1721693235276,0.08698779,67759.0,67758.0,0.74392]
[1721693235476,0.17510481,67759.0,67758.0,0.74392]
[1721693235677,0.17643142,67759.0,67758.0,0.74392]
[1721693236510,0.0883144,67759.0,67758.0,0.74392]
[1721693236715,0.0883144,67759.0,67758.0,0.007]
[1721693236716,0.23243995,67759.0,67758.0,0.007]
[1721693237097,0.23243995,67759.0,67758.0,0.449752]
[1721693237098,0.19678503,67759.0,67758.0,0.449752]
[1721693237244,0.1956597,67759.0,67758.0,0.44905201]
[1721693237451,0.21876857,67759.0,67758.0,0.00630001]
[1721693237648,0.36905863,67759.0,67758.0,0.00630001]
[1721693238057,0.70636857,67759.0,67758.0,0.00722401]
[1721693238254,0.81281292,67759.0,67758.0,0.00512968]
[1721693238457,0.95292947,67759.0,67758.0,0.00512968]
[1721693238835,1.39616732,67759.0,67758.0,0.00281036]
[1721693239035,1.34647312,67759.0,67758.0,0.000924]
[1721693239663,1.34647312,67759.0,67758.0,0.001924]
[1721693239664,1.35347312,67759.0,67758.0,0.001924]
[1721693239997,1.6496832,67759.0,67758.0,0.001924]
[1721693240543,1.6496832,67759.0,67758.0,0.00156035]
[1721693240544,2.3959092,67759.0,67758.0,0.00156035]
[1721693240739,2.1007462,67759.0,67758.0,0.00156035]
[1721693240923,2.27467829,67759.0,67758.0,0.00156035]
[1721693241418,0.43093447,67738.0,67737.0,0.000924]
[1721693241671,0.85744104,67738.0,67737.0,0.000924]
[1721693241903,0.92945384,67738.0,67737.0,0.000924]
[1721693242101,0.81938984,67738.0,67737.0,0.000924]
[1721693242450,0.91938984,67738.0,67737.0,0.000924]
[1721693242658,0.91938984,67738.0,67737.0,0.004924]
[1721693242659,0.94350854,67738.0,67737.0,0.004924]
[1721693242870,1.0637602,67738.0,67737.0,0.004924]
[1721693243485,0.88433536,67738.0,67737.0,0.004924]
[1721693243688,0.93433536,67738.0,67737.0,0.004924]
[1721693243916,0.98612197,67738.0,67737.0,0.004924]
[1721693244151,1.07410289,67738.0,67737.0,0.000924]
[1721693244357,1.22095815,67738.0,67737.0,0.000924]
[1721693244560,1.22695815,67738.0,67737.0,0.000924]
[1721693245000,1.22095815,67738.0,67737.0,0.000924]
[1721693245201,1.24395815,67738.0,67737.0,0.000924]
[1721693245435,1.95374015,67738.0,67737.0,0.000924]
[1721693245635,1.95374015,67738.0,67737.0,0.00058427]
[1721693246002,1.94777076,67738.0,67737.0,0.00058427]
[1721693246315,1.94777076,67738.0,67737.0,0.00049664]
[1721693246316,2.07965391,67738.0,67737.0,0.00049664]
[1721693246528,1.94677196,67738.0,67737.0,0.00049664]
[1721693247622,2.24202696,67738.0,67737.0,0.00049664]
[1721693247840,1.49288996,67738.0,67737.0,0.00049664]
[1721693248255,1.30792731,67738.0,67737.0,0.00049664]
[1721693248464,0.90567832,67738.0,67737.0,0.00049664]
[1721693248675,1.13269792,67738.0,67737.0,0.00049664]
[1721693248886,0.60544259,67738.0,67737.0,0.00049664]
[1721693249089,1.08205901,67738.0,67737.0,0.00049664]
[1721693249229,1.17102209,67738.0,67737.0,0.00049664]
[1721693249438,1.10686519,67738.0,67737.0,0.00049664]
[1721693249658,1.14486519,67738.0,67737.0,0.00049664]
[1721693250318,1.14485777,67738.0,67737.0,0.00049664]
[1721693250520,1.1009702,67738.0,67737.0,0.00049664]
[1721693250722,1.16681268,67738.0,67737.0,0.00049664]
[1721693250923,0.92409081,67738.0,67737.0,0.00049664]
[1721693251114,1.18993329,67738.0,67737.0,0.00049664]
[1721693251298,1.19591604,67738.0,67737.0,0.00049664]
[1721693251750,1.1009702,67738.0,67737.0,0.00049664]
[1721693251899,1.11276333,67738.0,67737.0,0.00049664]
[1721693252109,1.20170516,67738.0,67737.0,0.00049664]
[1721693252319,1.17976862,67738.0,67737.0,0.00049664]
[1721693252715,1.1248837,67738.0,67737.0,0.00049664]
[1721693252942,0.95134594,67738.0,67737.0,0.00049664]
[1721693253144,1.15134594,67738.0,67737.0,0.00049664]
[1721693253366,1.2671674,67738.0,67737.0,0.00049664]
[1721693253981,1.18625621,67738.0,67737.0,0.00049664]
[1721693254359,1.17525621,67738.0,67737.0,0.00041696]
[1721693254692,1.18725621,67738.0,67737.0,0.00041696]
[1721693254896,0.8709065,67738.0,67737.0,0.00041696]
[1721693255049,1.18813161,67738.0,67737.0,0.00041696]
[1721693255252,1.07231462,67738.0,67737.0,0.00041696]
[1721693255455,1.18152062,67738.0,67737.0,0.00041696]
[1721693256042,1.24733761,67738.0,67737.0,0.00041696]
[1721693257107,0.97540666,67738.0,67737.0,0.00041696]
[1721693257313,0.9754159,67738.0,67737.0,0.00041696]
[1721693257491,1.37040327,67738.0,67737.0,0.00041696]
[1721693257887,1.34232548,67738.0,67737.0,0.00041696]
[1721693258087,1.27771952,67738.0,67737.0,0.00041696]
[1721693258319,1.27771952,67738.0,67737.0,0.14804596]
[1721693258320,0.50178944,67738.0,67737.0,0.14804596]
[1721693258493,0.50177785,67738.0,67737.0,0.00041696]
[1721693259066,0.70177785,67738.0,67737.0,0.00041696]
[1721693259269,0.79454373,67738.0,67737.0,0.00041696]
[1721693259474,1.0508624,67738.0,67737.0,0.00041696]
[1721693259711,1.06789798,67738.0,67737.0,0.00041696]
[1721693259904,1.06789792,67738.0,67737.0,0.00041696]
[1721693260111,0.75356399,67738.0,67737.0,0.00041696]
[1721693260313,0.8436627,67738.0,67737.0,0.00041696]
[1721693260943,0.59109213,67738.0,67737.0,0.00041696]
[1721693261165,0.88772727,67738.0,67737.0,0.00041696]
[1721693261370,0.91084593,67738.0,67737.0,0.00041696]
[1721693261549,1.15989411,67738.0,67737.0,0.00041696]
[1721693261807,1.28418716,67738.0,67737.0,0.00041696]
[1721693262012,1.4133235,67738.0,67737.0,0.00041696]
[1721693262414,1.3633235,67738.0,67737.0,0.00034653]
[1721693262653,1.24115655,67738.0,67737.0,0.00034653]
[1721693262856,1.29115655,67738.0,67737.0,0.00034653]
[1721693263030,1.24115655,67738.0,67737.0,0.00034653]
[1721693263477,1.19115655,67738.0,67737.0,0.00034653]
[1721693263676,1.24115655,67738.0,67737.0,0.00034653]
[1721693263899,1.4381192,67738.0,67737.0,0.00034653]
[1721693264102,1.3874295,67738.0,67737.0,0.00034653]
[1721693264304,1.4374295,67738.0,67737.0,0.00034653]
[1721693266126,1.5693366,67738.0,67737.0,0.00034653]
[1721693266330,1.4374295,67738.0,67737.0,0.00034653]
[1721693266592,1.3874295,67738.0,67737.0,0.00034653]
[1721693266801,1.4728025,67738.0,67737.0,0.00034653]
[1721693267004,1.10627417,67738.0,67737.0,0.00034653]
[1721693267208,1.46914146,67738.0,67737.0,0.00034653]
[1721693267402,1.38570574,67738.0,67737.0,0.00034653]
[1721693267536,1.51774395,67738.0,67737.0,0.00034653]
[1721693267736,1.56774395,67738.0,67737.0,0.00034653]
[1721693268140,1.520618,67738.0,67737.0,0.00034653]
[1721693269213,1.51985295,67738.0,67737.0,0.00034653]
[1721693269530,1.51985295,67738.0,67737.0,0.00021913]
[1721693270356,2.00781636,67738.0,67737.0,0.00021913]
[1721693270567,2.00781636,67738.0,67737.0,0.00017913]
[1721693270568,2.43485557,67738.0,67737.0,0.00017913]
[1721693270784,2.43190839,67738.0,67737.0,0.00013913]
[1721693271202,2.46810426,67738.0,67737.0,0.00013913]
[1721693271412,2.46894426,67738.0,67737.0,0.00013913]
[1721693272725,2.17368926,67738.0,67737.0,0.00013913]
[1721693272970,1.34764874,67738.0,67737.0,0.00013913]
[1721693273144,1.49764874,67738.0,67737.0,0.00013913]
[1721693273349,1.69884723,67738.0,67737.0,0.00013913]
[1721693273549,1.69885163,67738.0,67737.0,0.00013913]
[1721693273756,1.49885305,67738.0,67737.0,0.00013913]
[1721693273957,1.64051382,67738.0,67737.0,0.00013913]
[1721693274435,1.55957935,67738.0,67737.0,0.00013913]
[1721693274674,1.64051382,67738.0,67737.0,0.00013913]
[1721693274889,1.44051382,67738.0,67737.0,0.00013913]
[1721693275107,1.00677656,67738.0,67737.0,0.00013913]
[1721693275319,1.27517596,67738.0,67737.0,0.00013913]
[1721693275529,1.12647656,67738.0,67737.0,8.729e-05]
[1721693275702,1.17647656,67738.0,67737.0,8.729e-05]
[1721693275917,1.12647656,67738.0,67737.0,8.729e-05]
[1721693276312,1.01741999,67738.0,67737.0,8.729e-05]
[1721693276514,1.44739629,67738.0,67737.0,8.729e-05]
[1721693276875,1.49739629,67738.0,67737.0,8.729e-05]
[1721693277083,1.29863198,67738.0,67737.0,8.729e-05]
[1721693277372,1.34863198,67738.0,67737.0,8.729e-05]
[1721693277979,1.29863198,67738.0,67737.0,8.729e-05]
[1721693278328,1.29863198,67738.0,67737.0,4.729e-05]
[1721693279483,1.28170995,67738.0,67737.0,4.729e-05]
[1721693280068,1.25077548,67738.0,67737.0,4.729e-05]
[1721693281535,1.33170995,67738.0,67737.0,7.29e-06]
[1721693281739,1.28170995,67738.0,67737.0,7.29e-06]
[1721693282171,1.281096,67738.0,67737.0,7.29e-06]
[1721693282379,1.06629915,67738.0,67737.0,7.29e-06]
[1721693282602,1.11629915,67738.0,67737.0,0.06010729]
[1721693282804,1.06629915,67738.0,67737.0,0.06010729]
[1721693283178,0.91629915,67738.0,67737.0,0.06010729]
[1721693283430,1.06629915,67738.0,67737.0,0.06010729]
[1721693283544,0.86629915,67738.0,67737.0,0.06010729]
[1721693283997,1.06629915,67738.0,67737.0,0.06010729]
[1721693284343,1.28381714,67738.0,67737.0,0.06010729]
[1721693284776,1.05121192,67738.0,67737.0,0.06010729]
[1721693284989,0.96337854,67738.0,67737.0,0.06010729]
[1721693285385,0.63325982,67738.0,67737.0,0.06010729]
[1721693285920,0.83325982,67738.0,67737.0,0.06010729]
[1721693287604,0.83308351,67738.0,67737.0,0.06010729]
[1721693290430,0.96374331,67738.0,67737.0,0.06010729]
[1721693290631,0.61505152,67738.0,67737.0,0.06010729]
[1721693290838,0.82616644,67738.0,67737.0,0.06010729]
[1721693291246,0.95637328,67738.0,67737.0,0.06010729]
[1721693291447,0.82616644,67738.0,67737.0,0.06010729]
[1721693291653,0.79523197,67738.0,67737.0,0.06010729]
[1721693291818,0.82616644,67738.0,67737.0,0.06010729]
[1721693292440,0.82616644,67738.0,67737.0,0.05000455]
[1721693292663,0.82616644,67738.0,67719.0,0.009141]
[1721693292664,0.03093447,67721.0,67719.0,0.009141]
[1721693292886,0.2,67727.0,67719.0,0.009141]
[1721693292887,0.0580083,67720.0,67719.0,0.009141]
[1721693293096,0.18688828,67720.0,67719.0,0.009141]
[1721693293293,0.16468876,67720.0,67719.0,0.086141]
[1721693293613,0.15952247,67720.0,67719.0,0.086141]
[1721693294157,0.15856103,67720.0,67719.0,0.086141]
[1721693294547,0.07712471,67720.0,67719.0,0.086141]
[1721693294795,0.16080297,67720.0,67719.0,0.086141]
[1721693295433,0.25918276,67720.0,67719.0,0.086141]
[1721693295573,0.45918276,67720.0,67719.0,0.148041]
[1721693295806,0.65918276,67720.0,67719.0,0.148041]
[1721693296010,0.6990453,67720.0,67719.0,0.148041]
[1721693296219,0.6990453,67720.0,67719.0,0.009141]
[1721693296220,0.65818276,67720.0,67719.0,0.009141]
[1721693296421,0.74643623,67720.0,67719.0,0.009141]
[1721693296653,0.72819032,67720.0,67719.0,0.009141]
[1721693296867,0.76805286,67720.0,67719.0,0.009141]
[1721693297098,0.63993685,67720.0,67719.0,0.009141]
[1721693297302,0.64093685,67720.0,67719.0,0.009141]
[1721693297499,0.44093685,67720.0,67719.0,0.009141]
[1721693297718,0.44093685,67720.0,67719.0,0.154041]
[1721693297719,0.41000238,67720.0,67719.0,0.154041]
[1721693297921,0.44093685,67720.0,67719.0,0.154041]
[1721693298151,0.64093685,67720.0,67719.0,0.154041]
[1721693299675,0.6479035,67720.0,67719.0,0.154041]
[1721693300491,0.2479035,67720.0,67719.0,0.154041]
[1721693300680,0.21696903,67720.0,67719.0,0.154041]
[1721693300964,0.11847971,67720.0,67719.0,0.154041]
[1721693301204,0.15693542,67720.0,67719.0,0.154041]
[1721693301425,0.2580898,67720.0,67719.0,0.154041]
[1721693301649,0.04224165,67720.0,67719.0,0.154041]
[1721693301771,0.17505919,67720.0,67719.0,0.154041]
[1721693302204,0.04224165,67720.0,67719.0,0.154041]
[1721693302613,0.02689668,67720.0,67719.0,0.154041]
[1721693304659,0.05783115,67720.0,67719.0,0.154041]
[1721693304855,0.02689668,67720.0,67719.0,0.154041]
[1721693305719,0.0271666,67720.0,67719.0,0.154041]
[1721693306096,0.02721227,67720.0,67719.0,0.154041]
[1721693306639,0.02721227,67720.0,67719.0,0.1694451]
[1721693307505,0.02721227,67720.0,67719.0,0.154041]
[1721693307707,0.05033016,67720.0,67719.0,0.154041]
[1721693308463,0.02411789,67720.0,67719.0,0.154041]
[1721693308663,0.05018604,67720.0,67719.0,0.154041]
[1721693309064,0.02706815,67720.0,67719.0,0.154041]
[1721693309271,0.05018594,67720.0,67719.0,0.154041]
[1721693309889,0.02706815,67720.0,67719.0,0.154041]
[1721693310462,0.05018594,67720.0,67719.0,0.154041]
[1721693311575,0.02411779,67720.0,67719.0,1.187724]
[1721693312231,0.05037251,67720.0,67719.0,1.483062]
[1721693312636,0.08130698,67720.0,67719.0,1.187724]
[1721693313650,0.08130698,67720.0,67719.0,0.452148]
[1721693313856,0.08306169,67720.0,67719.0,0.747486]
[1721693314076,0.33433378,67720.0,67719.0,0.747486]
[1721693314281,0.33433378,67720.0,67719.0,0.15681]
[1721693314522,0.33433378,67720.0,67719.0,0.452148]
[1721693314757,0.32120061,67720.0,67719.0,0.452148]
[1721693315396,0.32120061,67720.0,67719.0,0.747486]
[1721693316214,0.32120061,67720.0,67719.0,0.452148]
[1721693316625,0.37992067,67720.0,67719.0,0.452148]
[1721693317053,0.37992067,67720.0,67719.0,0.15681]
[1721693317284,0.37992067,67720.0,67719.0,0.009141]
[1721693317694,0.37919163,67720.0,67719.0,0.009141]
[1721693318113,0.37864142,67720.0,67719.0,0.009141]
[1721693319885,0.24643194,67720.0,67719.0,0.009141]
[1721693320117,0.24643194,67720.0,67719.0,0.15681]
[1721693320729,0.24658591,67720.0,67719.0,0.15681]
[1721693322514,0.24658591,67720.0,67719.0,0.452148]
[1721693322719,0.44658591,67720.0,67719.0,0.452148]
[1721693323318,0.44658591,67720.0,67719.0,0.887386]
[1721693323319,0.24658591,67720.0,67719.0,0.887386]
[1721693323521,0.05505226,67720.0,67719.0,0.887386]
[1721693323795,0.45135447,67720.0,67719.0,0.887386]
[1721693326737,0.45121497,67720.0,67719.0,0.887386]
[1721693329332,0.44900415,67720.0,67719.0,0.887386]
[1721693330063,0.44896697,67720.0,67719.0,0.887386]
[1721693330479,0.44896225,67720.0,67719.0,0.887386]
[1721693333082,0.4482609,67720.0,67719.0,0.887386]
[1721693333285,0.4482609,67720.0,67719.0,0.15681]
[1721693333891,0.4482609,67720.0,67719.0,0.452148]
[1721693334298,0.4482609,67720.0,67719.0,0.747486]
[1721693334505,0.2482609,67720.0,67719.0,1.042824]
[1721693334708,0.2482609,67720.0,67719.0,1.185024]
[1721693334912,0.21732643,67720.0,67719.0,1.185024]
[1721693335123,0.2482609,67720.0,67719.0,1.185024]
[1721693335336,0.21732643,67720.0,67719.0,1.185024]
[1721693335920,0.02411779,67720.0,67719.0,1.480362]
[1721693336124,0.02411779,67720.0,67719.0,1.185024]
[1721693336125,0.1569478,67720.0,67719.0,1.185024]
[1721693336288,0.2609222,67720.0,67719.0,1.185024]
[1721693337592,0.3937649,67720.0,67719.0,1.185024]
[1721693337788,0.2609222,67720.0,67719.0,1.185024]
[1721693339008,0.24906696,67720.0,67719.0,1.185024]
[1721693341091,0.24906696,67720.0,67719.0,1.19389224]
[1721693341300,0.14946163,67720.0,67719.0,1.19389224]
[1721693341495,0.24903764,67720.0,67719.0,1.19389224]
[1721693341721,0.14557649,67720.0,67719.0,1.19389224]
[1721693341877,0.24515569,67720.0,67719.0,1.19389224]
[1721693344097,0.21422122,67720.0,67719.0,1.19389224]
[1721693344309,0.21822583,67720.0,67719.0,1.19389224]
[1721693347297,0.11970072,67720.0,67719.0,1.19389224]
[1721693347520,0.21932927,67720.0,67719.0,1.19389224]
[1721693348336,0.21932927,67720.0,67719.0,1.48923024]
[1721693348581,0.04283113,67720.0,67719.0,1.48923024]
[1721693349081,0.01971334,67720.0,67719.0,1.48923024]
[1721693349800,0.04283043,67720.0,67719.0,1.48923024]
[1721693350008,0.0737649,67720.0,67719.0,1.19389224]
[1721693350430,0.07692048,67720.0,67719.0,1.19389224]
[1721693350858,0.07692048,67720.0,67719.0,1.48923024]
[1721693351065,0.07692048,67720.0,67719.0,1.19389224]
[1721693351495,0.04598601,67720.0,67719.0,1.48923024]
[1721693351699,0.07692048,67720.0,67719.0,1.48923024]
[1721693353531,0.07692048,67720.0,67719.0,1.19389224]
[1721693353887,0.05505156,67720.0,67719.0,1.19389224]
[1721693354067,0.07692501,67720.0,67719.0,1.19389224]
[1721693355504,0.05505156,67720.0,67719.0,0.452148]
[1721693355661,0.25619846,67720.0,67719.0,0.452148]
[1721693355866,0.40565072,67720.0,67719.0,0.452148]
[1721693356482,0.30753575,67720.0,67719.0,0.452148]
[1721693357565,0.30753575,67720.0,67719.0,0.15681]
[1721693358221,0.30753575,67720.0,67719.0,0.452148]
[1721693359217,0.24223575,67720.0,67719.0,0.747486]
[1721693359599,0.24539171,67720.0,67719.0,1.042824]
[1721693359818,0.24539171,67720.0,67719.0,1.184024]
[1721693360235,0.21445724,67720.0,67719.0,1.184024]
[1721693360484,0.24539171,67720.0,67719.0,1.184024]
[1721693362728,0.24849191,67720.0,67719.0,1.184024]
[1721693365517,0.05505156,67720.0,67719.0,1.184024]
[1721693365799,0.15074999,67720.0,67719.0,1.184024]
[1721693366111,0.15509795,67720.0,67719.0,1.184024]
[1721693366339,0.24771123,67720.0,67719.0,1.184024]
[1721693366891,0.21677676,67720.0,67719.0,1.479362]
[1721693367108,0.0413751,67720.0,67719.0,1.479362]
[1721693367787,0.0413751,67720.0,67719.0,1.7747]
[1721693367997,0.01825801,67720.0,67719.0,1.7747]
[1721693368347,0.001,67720.0,67719.0,1.7747]
[1721693368550,0.02620476,67720.0,67719.0,1.7747]
[1721693368952,0.02620476,67720.0,67719.0,1.8747]
[1721693369250,0.08958081,67720.0,67719.0,1.8747]
[1721693369453,0.0674254,67720.0,67719.0,1.8747]
[1721693370061,0.0664254,67720.0,67719.0,1.8747]
[1721693370220,0.1638117,67731.0,67719.0,1.8747]
[1721693370221,0.0664254,67721.0,67720.0,1.624331]
[1721693370422,0.08858081,67721.0,67720.0,1.624331]
[1721693370716,0.06641461,67721.0,67720.0,1.476665]
[1721693371094,0.06641461,67721.0,67720.0,1.624331]
[1721693371293,0.08858081,67722.0,67721.0,1.476645]
[1721693371533,0.08858081,67722.0,67721.0,1.766709]
[1721693371736,0.03093447,67733.0,67732.0,0.442921]
[1721693371945,0.03093447,67735.0,67734.0,0.442908]
[1721693372153,0.03093447,67735.0,67734.0,0.73818]
[1721693372154,0.14005841,67735.0,67734.0,0.73818]
[1721693372359,0.05225886,67735.0,67734.0,1.766396]
[1721693372561,0.02914494,67735.0,67734.0,2.07973353]
[1721693372790,0.00084,67737.0,67736.0,0.437663]
[1721693372791,0.08935163,67737.0,67736.0,0.437663]
[1721693373000,0.00084,67737.0,67736.0,1.78114853]
[1721693373209,0.04509373,67737.0,67736.0,2.07641153]
[1721693373419,0.00084,67737.0,67736.0,2.36867453]
[1721693373642,0.00084,67737.0,67736.0,2.39167453]